bitfinex-derivatives/quotes_ETHF0:USTF0_20250102
["timestamp","ask_amount","ask_price","bid_price","bid_amount"]
[1735821558878,8.15532716,3474.7,3474.6,0.28809]
[1735821559478,7.86723716,3474.7,3474.6,0.28809]
[1735821559678,8.32793716,3475.0,3474.5,1.131]
[1735821559985,8.61600716,3475.0,3474.9,0.28808]
[1735821560276,0.28808,3474.9,3474.8,0.28808]
[1735821561481,0.74877,3475.0,3474.9,0.28808]
[1735821562278,0.28808,3474.9,3474.8,0.28808]
[1735821563179,0.28809,3474.8,3474.7,0.28809]
[1735821565879,3.2078,3474.9,3474.3,0.4279]
[1735821566179,0.4188,3474.7,3474.4,1.5762]
[1735821566381,0.28811,3474.6,3474.5,0.2881]
[1735821566786,0.4188,3474.7,3474.4,1.5762]
[1735821567088,0.28811,3474.5,3474.4,0.73331]
[1735821568099,0.4188,3474.7,3474.4,0.4452]
[1735821568294,0.28811,3474.6,3474.5,0.28811]
[1735821568505,0.7069,3474.7,3474.6,0.2881]
[1735821568690,0.2881,3474.7,3474.6,0.2881]
[1735821569090,2.49016654,3474.8,3474.4,0.4452]
[1735821569298,0.2881,3474.6,3474.5,0.2881]
[1735821569596,2.49016654,3474.8,3474.4,1.5762]
[1735821569799,0.2881,3474.7,3474.6,0.2881]
[1735821573293,2.49016654,3474.8,3474.4,1.5762]
[1735821573600,0.28811,3474.5,3474.4,1.86432]
[1735821574696,0.28809,3474.8,3474.7,0.28809]
[1735821574890,3.2078,3474.9,3474.8,0.28808]
[1735821575698,0.8793,3475.3,3474.9,0.28807]
[1735821575699,0.4602,3475.2,3474.9,0.28807]
[1735821575898,0.28806,3475.1,3475.0,0.4555]
[1735821576093,2.33002654,3475.1,3475.0,0.4555]
[1735821576300,0.28808,3474.9,3474.8,0.28808]
[1735821578003,0.28808,3474.8,3474.7,0.74359]
[1735821578399,0.28808,3474.9,3474.8,0.28808]
[1735821579301,0.28806,3475.2,3475.1,0.28806]
[1735821579498,0.28806,3475.1,3475.0,0.28806]
[1735821580606,0.28805,3475.2,3474.9,0.28807]
[1735821580802,0.28807,3475.0,3474.9,0.28807]
[1735821582108,0.4382,3475.3,3474.7,1.5865]
[1735821582409,0.28806,3475.1,3475.0,0.28806]
[1735821583405,0.28807,3475.1,3474.9,0.28807]
[1735821584502,0.28807,3475.1,3475.0,0.28807]
[1735821587509,0.28805,3475.2,3475.1,0.28806]
[1735821587710,3.26597589,3475.3,3475.2,0.28805]
[1735821587902,1.22400935,3475.3,3475.2,0.28805]
[1735821588511,0.93596935,3475.3,3474.7,1.131]
[1735821588709,1.22401935,3475.3,3474.7,1.131]
[1735821588912,1.22401935,3475.3,3475.2,0.28805]
[1735821589704,0.93596935,3475.3,3475.2,0.28805]
[1735821589903,1.22400935,3475.3,3475.2,0.28805]
[1735821590509,0.28806,3475.2,3475.1,0.28805]
[1735821592416,0.78581935,3475.3,3475.2,0.28805]
[1735821593610,0.28806,3475.2,3475.1,0.28805]
[1735821594310,2.53973589,3475.3,3474.7,1.131]
[1735821594511,0.28807,3475.0,3474.9,0.28807]
[1735821594712,0.28807,3475.0,3474.9,1.41907]
[1735821596036,2.53973589,3475.3,3474.9,1.131]
[1735821596037,0.28805,3475.2,3474.9,1.131]
[1735821596315,0.28805,3475.2,3475.1,0.28806]
[1735821599515,0.28805,3475.3,3475.2,0.28804]
[1735821600921,8.29273716,3475.5,3475.0,3.6349]
[1735821601223,3.2078,3475.8,3475.2,0.72013]
[1735821601424,3.2078,3475.8,3475.7,0.28801]
[1735821601816,0.749,3475.9,3475.6,1.131]
[1735821602015,0.28801,3475.8,3475.7,0.28801]
[1735821602621,0.28801,3475.7,3475.6,1.41901]
[1735821603723,2.50296654,3475.9,3475.6,1.131]
[1735821604231,2.50296654,3475.9,3475.6,1.41902]
[1735821604232,0.28801,3475.7,3475.6,1.41902]
[1735821604920,0.28801,3475.7,3475.6,1.131]
[1735821606027,0.28805,3475.3,3475.2,1.41905]
[1735821607534,0.8783,3475.4,3475.3,0.28804]
[1735821607723,0.4293,3475.4,3475.3,0.28804]
[1735821610733,0.71733,3475.4,3475.3,0.28804]
[1735821611425,0.4293,3475.4,3475.3,0.28804]
[1735821612635,0.71733,3475.4,3475.3,0.28804]
[1735821613134,0.4293,3475.4,3475.2,1.131]
[1735821613332,0.28804,3475.3,3475.2,1.41905]
[1735821613539,0.72244,3475.3,3475.2,1.41905]
[1735821613836,0.72244,3475.3,3475.2,1.131]
[1735821614426,0.28804,3475.3,3475.2,1.131]
[1735821616137,0.78558764,3475.3,3475.2,1.131]
[1735821617229,0.78558764,3475.3,3475.2,0.28805]
[1735821617630,0.78558764,3475.3,3475.1,0.4554]
[1735821617631,0.49754764,3475.3,3475.1,0.4554]
[1735821617836,0.28805,3475.2,3475.1,0.74346]
[1735821622342,0.28805,3475.3,3475.2,0.28804]
[1735821622940,5.53779654,3475.5,3475.4,0.28803]
[1735821623242,0.4432,3475.6,3475.1,0.4554]
[1735821623436,8.20729756,3475.7,3475.5,0.28803]
[1735821623642,8.20729756,3475.7,3475.6,1.16582]
[1735821624044,7.91928756,3475.7,3475.6,1.16582]
[1735821624645,0.28801,3475.8,3475.7,0.28801]
[1735821626739,0.7466,3475.9,3475.8,0.288]
[1735821628653,0.4586,3475.9,3475.8,0.288]
[1735821628846,0.49759137,3476.0,3475.6,2.0078]
[1735821629048,12.50979182,3476.1,3476.0,0.28798]
[1735821629242,2.82743721,3476.1,3476.0,0.28798]
[1735821629440,2.32994654,3476.1,3476.0,0.28798]
[1735821633946,0.49749067,3476.2,3476.1,0.28798]
[1735821634147,7.91928756,3476.4,3475.9,2.76194654]
[1735821634442,7.91928756,3476.4,3476.3,3.49576]
[1735821634646,7.91928756,3476.4,3476.3,4.62576]
[1735821635245,8.20723756,3476.4,3476.3,4.3378]
[1735821635552,8.20723756,3476.4,3476.3,1.13]
[1735821635753,0.28795,3476.4,3476.3,1.13]
[1735821636147,0.28795,3476.4,3476.3,1.41796]
[1735821636452,0.28794,3476.6,3476.5,0.28794]
[1735821636650,0.28794,3476.5,3476.4,0.28795]
[1735821637154,0.28795,3476.4,3476.3,1.13]
[1735821637746,0.94573385,3476.7,3476.3,1.13]
[1735821637953,8.20720756,3476.8,3476.7,0.28793]
[1735821638144,8.20720756,3476.8,3476.3,1.13]
[1735821638350,7.91928756,3476.8,3476.6,0.28793]
[1735821638548,7.91928756,3476.8,3476.7,0.4412]
[1735821638549,8.20720756,3476.8,3476.7,0.4412]
[1735821638748,0.28792,3476.8,3476.7,0.72913]
[1735821639150,0.28792,3476.8,3476.7,0.4412]
[1735821639349,0.28792,3476.8,3476.7,0.8668]
[1735821639752,0.28792,3476.8,3476.7,1.15473]
[1735821640152,0.28792,3476.8,3476.7,0.8668]
[1735821640756,0.28792,3476.8,3476.7,1.15473]
[1735821642255,0.28792,3476.8,3476.7,0.8668]
[1735821643457,0.28792,3476.8,3476.7,1.15473]
[1735821643652,2.94546654,3477.1,3476.7,0.8668]
[1735821643956,2.04196654,3477.1,3476.7,0.8668]
[1735821644157,0.28791,3477.0,3476.9,0.28791]
[1735821645860,0.28792,3476.9,3476.8,0.28791]
[1735821646057,0.28792,3476.8,3476.7,0.8668]
[1735821646255,1.18062,3476.8,3476.7,0.4256]
[1735821646658,2.93466654,3476.8,3476.3,1.5597]
[1735821646961,0.28795,3476.5,3476.4,0.28795]
[1735821649459,0.28795,3476.4,3476.3,2.30346]
[1735821649862,0.28795,3476.5,3476.4,0.28794]
[1735821654380,0.28793,3476.7,3476.3,2.0155]
[1735821654586,0.28793,3476.7,3476.6,0.28793]
[1735821655486,0.74692,3476.8,3476.7,0.28793]
[1735821655674,0.459,3476.8,3476.7,0.28793]
[1735821656292,3.2078,3476.9,3476.8,0.28792]
[1735821659089,3.49571,3476.9,3476.8,0.28792]
[1735821659288,3.2078,3476.9,3476.8,0.28792]
[1735821659690,3.49571,3476.9,3476.8,0.28792]
[1735821661288,3.2078,3476.9,3476.8,0.28792]
[1735821663691,0.2879,3477.0,3476.5,4.36745]
[1735821663884,0.4587,3477.2,3476.5,3.6476]
[1735821663885,0.28791,3476.9,3476.5,3.6476]
[1735821664093,0.28791,3476.9,3476.8,0.28791]
[1735821667096,0.28793,3476.7,3476.6,0.28793]
[1735821667803,1.15733,3476.7,3476.6,0.28793]
[1735821668099,0.8694,3476.7,3476.5,1.13]
[1735821668301,0.28793,3476.6,3476.5,1.13]
[1735821668697,0.8694,3476.7,3476.1,3.2078]
[1735821668892,0.71984,3476.6,3476.2,1.13]
[1735821669097,0.28796,3476.3,3476.2,1.41796]
[1735821669404,0.28794,3476.5,3476.4,0.28795]
[1735821669600,0.28796,3476.4,3476.3,0.28796]
[1735821669795,0.4396,3476.6,3476.3,0.28796]
[1735821670001,0.28795,3476.4,3476.2,1.87386]
[1735821670401,0.28796,3476.3,3476.2,1.87386]
[1735821670605,0.28796,3476.3,3476.2,1.5859]
[1735821670904,0.78559079,3476.3,3476.2,1.13]
[1735821671095,0.78559079,3476.3,3476.2,1.41797]
[1735821671297,0.28796,3476.3,3476.2,1.41797]
[1735821672499,0.28796,3476.3,3476.2,1.13]
[1735821672708,0.73606,3476.3,3476.2,1.13]
[1735821673007,1.23362615,3476.3,3476.2,1.13]
[1735821673409,0.4481,3476.3,3476.2,1.13]
[1735821673704,3.2078,3476.4,3476.3,0.28796]
[1735821673905,3.2078,3476.4,3476.3,0.70806]
[1735821674406,0.28795,3476.4,3476.3,0.70806]
[1735821675499,0.288,3475.9,3475.8,0.288]
[1735821675699,0.28799,3476.0,3475.9,0.28799]
[1735821676107,0.288,3475.9,3475.8,0.288]
[1735821676302,0.288,3475.9,3475.7,1.5767]
[1735821676303,0.288,3475.8,3475.7,0.4467]
[1735821676508,0.288,3475.8,3475.7,1.86471]
[1735821677111,0.288,3475.8,3475.7,1.5767]
[1735821678411,0.288,3475.8,3475.7,1.86471]
[1735821679307,0.288,3475.8,3475.7,1.5767]
[1735821679811,0.288,3475.8,3475.7,1.86471]
[1735821680310,0.288,3475.8,3475.7,1.5767]
[1735821680704,0.7127,3475.9,3475.8,0.288]
[1735821681009,0.4247,3475.9,3475.8,0.288]
[1735821682405,0.28798,3476.1,3475.7,1.5767]
[1735821682608,0.28796,3476.3,3476.2,0.28797]
[1735821683800,3.49576,3476.4,3476.3,0.28796]
[1735821684201,0.4238,3476.5,3475.9,0.4239]
[1735821684402,0.4238,3476.5,3475.9,1.14387]
[1735821684612,0.28796,3476.4,3476.3,0.28796]
[1735821687715,0.28797,3476.2,3475.9,0.4239]
[1735821688007,0.28799,3476.0,3475.9,0.28798]
[1735821688217,3.6625,3476.1,3475.6,0.4193]
[1735821688401,3.95048,3476.1,3476.0,0.28798]
[1735821688605,0.28797,3476.2,3475.7,1.13]
[1735821688806,0.28797,3476.2,3476.1,0.28798]
[1735821692515,0.28797,3476.3,3476.2,0.28796]
[1735821693316,0.4547,3476.4,3475.8,3.6275]
[1735821693512,0.28797,3476.3,3476.2,0.28796]
[1735821693711,0.28797,3476.2,3476.1,0.28797]
[1735821695117,0.95184847,3476.4,3475.8,3.6275]
[1735821695417,0.28798,3476.1,3476.0,0.28798]
[1735821695622,0.28797,3476.2,3476.1,0.28797]
[1735821696818,0.4547,3476.4,3475.9,0.4454]
[1735821697123,0.28798,3476.1,3476.0,0.28798]
[1735821698022,0.95229657,3476.4,3475.9,0.4454]
[1735821698322,0.28797,3476.2,3476.1,0.28797]
[1735821699520,0.95237117,3476.4,3475.9,0.4454]
[1735821699723,0.28798,3476.1,3476.0,0.28798]
[1735821701123,0.95237117,3476.4,3475.9,0.4454]
[1735821701323,0.28798,3476.1,3476.0,0.28798]
[1735821702122,0.28798,3476.1,3475.9,0.4454]
[1735821702320,0.28798,3476.0,3475.9,0.73339]
[1735821702716,0.95237117,3476.4,3475.8,3.2078]
[1735821703015,0.28799,3475.9,3475.8,3.2078]
[1735821703216,0.28799,3475.9,3475.8,3.4958]
[1735821703821,0.4466,3476.1,3475.7,1.13]
[1735821704022,0.288,3475.8,3475.7,0.288]
[1735821704932,0.288,3475.9,3475.8,0.288]
[1735821708227,0.7266,3475.9,3475.8,0.288]
[1735821709829,3.9344,3475.9,3475.8,0.288]
[1735821710034,3.9344,3475.9,3475.5,0.455]
[1735821710035,6.18623959,3475.9,3475.5,0.455]
[1735821710332,0.28802,3475.6,3475.5,0.455]
[1735821710928,0.28801,3475.7,3475.5,0.455]
[1735821711229,0.78570735,3475.8,3475.7,0.28801]
[1735821711533,0.78573376,3475.8,3475.7,0.28801]
[1735821711734,0.288,3475.8,3475.7,0.28801]
[1735821712235,3.4958,3475.9,3475.8,0.288]
[1735821713334,3.4958,3475.9,3475.7,0.288]
[1735821713335,0.288,3475.8,3475.7,0.288]
[1735821713535,0.28801,3475.8,3475.7,0.28801]
[1735821715640,0.28801,3475.8,3475.6,0.9032]
[1735821715641,0.28801,3475.7,3475.6,1.19121]
[1735821715837,0.28801,3475.8,3475.6,1.19121]
[1735821716234,0.28801,3475.8,3475.7,0.28801]
[1735821716540,0.28802,3475.6,3475.5,0.455]
[1735821717041,0.28805,3475.2,3475.0,4.52543408]
[1735821717229,0.89535742,3475.3,3475.0,4.98093408]
[1735821717439,4.56475742,3475.5,3475.0,5.8762915]
[1735821717635,0.28805,3475.2,3475.1,0.28806]
[1735821717836,0.28806,3475.1,3475.0,5.26899408]
[1735821718141,0.28805,3475.2,3475.1,0.28805]
[1735821718535,0.4304,3475.4,3475.0,1.87356]
[1735821718839,0.4304,3475.4,3475.1,0.28806]
[1735821719035,0.28805,3475.3,3475.2,0.28805]
[1735821719535,3.2078,3475.5,3475.0,1.5855]
[1735821719736,3.2078,3475.5,3475.4,0.28803]
[1735821720040,7.51118565,3475.7,3475.6,0.28802]
[1735821720542,0.71841,3475.7,3475.6,0.28802]
[1735821720841,0.4304,3475.7,3475.1,5.67262546]
[1735821721041,0.71841,3475.7,3475.6,0.28802]
[1735821722044,0.28803,3475.5,3475.4,0.28803]
[1735821722233,0.28804,3475.3,3475.2,0.28805]
[1735821722437,0.28804,3475.4,3475.3,0.28804]
[1735821723041,0.28804,3475.3,3475.2,1.41805]
[1735821724142,0.28804,3475.3,3475.2,1.13]
[1735821724645,3.6579,3475.5,3475.1,1.41805]
[1735821724846,0.4591,3475.2,3475.1,1.41805]
[1735821725447,7.08079565,3475.6,3475.5,0.28803]
[1735821726345,0.28802,3475.6,3475.5,0.28803]
[1735821726851,0.28803,3475.4,3475.3,0.28803]
[1735821727041,0.28805,3475.3,3475.2,0.28805]
[1735821727845,0.28804,3475.4,3475.3,0.28804]
[1735821729748,0.28804,3475.4,3475.1,1.13]
[1735821729749,3.49582,3475.6,3475.5,0.28803]
[1735821729948,1.62291,3475.8,3475.7,0.28801]
[1735821730257,0.28802,3475.7,3475.6,0.28801]
[1735821730749,0.893,3475.8,3475.3,0.448]
[1735821730951,0.28803,3475.6,3475.5,0.28802]
[1735821731354,0.28803,3475.5,3475.4,0.28803]
[1735821731956,0.28802,3475.6,3475.5,0.28802]
[1735821737759,0.28803,3475.4,3475.3,0.73604]
[1735821738761,0.4412,3475.7,3475.3,0.448]
[1735821738963,0.28803,3475.5,3475.4,0.28803]
[1735821739958,0.28803,3475.4,3475.3,0.73604]
[1735821741760,0.28805,3475.3,3475.2,0.28804]
[1735821741957,0.4236,3475.3,3475.2,0.28804]
[1735821742357,0.71164,3475.3,3475.2,0.28804]
[1735821742765,0.71164,3475.3,3475.2,1.13]
[1735821743160,0.4236,3475.3,3475.2,1.13]
[1735821743470,0.71164,3475.3,3475.2,1.41805]
[1735821743764,0.4236,3475.3,3475.2,1.41805]
[1735821743968,0.71164,3475.3,3475.2,1.41805]
[1735821745065,0.4236,3475.3,3475.2,1.41805]
[1735821746071,7.52198565,3475.7,3475.6,0.28802]
[1735821746265,7.08078565,3475.7,3475.6,0.28802]
[1735821746769,0.28801,3475.7,3475.6,0.28802]
[1735821748066,0.8748,3475.8,3475.5,0.4435]
[1735821748274,0.28802,3475.6,3475.5,0.73152]
[1735821749671,1.18353992,3475.7,3475.6,0.28802]
[1735821749874,0.28801,3475.7,3475.6,0.28802]
[1735821750374,0.28802,3475.6,3475.5,0.73152]
[1735821754171,0.28802,3475.6,3475.5,0.4435]
[1735821754768,0.28802,3475.6,3475.5,0.73153]
[1735821756172,0.78606058,3475.7,3475.6,0.28802]
[1735821756575,0.28801,3475.7,3475.6,0.28802]
[1735821756777,0.28802,3475.6,3475.5,0.73152]
[1735821757070,0.49811515,3475.7,3475.6,0.28802]
[1735821757269,7.66757565,3475.8,3475.5,0.4435]
[1735821757578,0.28802,3475.6,3475.5,0.73152]
[1735821758678,0.28801,3475.7,3475.6,0.28801]
[1735821758873,1.3728974,3475.8,3475.5,0.4435]
[1735821759175,0.28801,3475.7,3475.6,0.28801]
[1735821760281,1.3728974,3475.8,3475.5,0.4435]
[1735821760480,1.6608974,3475.8,3475.7,0.28801]
[1735821761477,1.3728974,3475.8,3475.5,0.4435]
[1735821761673,0.28802,3475.6,3475.5,0.73152]
[1735821762885,0.28802,3475.6,3475.3,2.0016]
[1735821762886,0.28803,3475.5,3475.4,0.28803]
[1735821763178,2.26842732,3475.8,3475.3,1.5674]
[1735821763479,1.18355992,3475.4,3475.3,1.13]
[1735821766575,1.62795992,3475.4,3475.3,1.13]
[1735821769285,2.12610012,3475.4,3475.3,1.13]
[1735821769583,1.83805749,3475.4,3475.0,3.6411]
[1735821769782,1.18358992,3475.1,3475.0,3.6411]
[1735821770079,1.18358992,3475.1,3475.0,3.92917]
[1735821770675,1.18358992,3475.1,3475.0,3.6411]
[1735821771082,1.18358992,3475.1,3475.0,3.92917]
[1735821771981,1.18358992,3475.1,3475.0,3.6411]
[1735821774683,1.18358992,3475.1,3475.0,3.92917]
[1735821775385,1.18358992,3475.1,3475.0,3.6411]
[1735821776488,0.89552992,3475.1,3474.8,1.13]
[1735821776787,1.18360992,3474.9,3474.8,1.13]
[1735821776987,0.89552992,3474.9,3474.7,0.8671]
[1735821777189,0.451,3474.8,3474.6,3.2078]
[1735821777383,1.18361992,3474.7,3474.6,3.2078]
[1735821781591,1.18361992,3474.7,3474.5,0.28811]
[1735821781985,0.2881,3474.6,3474.5,0.28811]
[1735821782686,1.18362992,3474.7,3474.5,0.28811]
[1735821782893,1.18362992,3474.7,3474.6,0.2881]
[1735821783089,0.451,3474.8,3474.7,0.28809]
[1735821783283,1.34652992,3474.8,3474.7,0.28809]
[1735821783983,1.34652992,3474.8,3474.4,0.4306]
[1735821784185,1.34652992,3474.8,3474.6,0.28809]
[1735821784389,1.63461992,3474.8,3474.6,0.28809]
[1735821784679,1.34652992,3474.8,3474.4,0.4306]
[1735821784888,0.89552992,3474.5,3474.4,0.71872]
[1735821797401,1.18362992,3474.7,3474.6,0.2881]
[1735821800801,0.89552992,3474.7,3474.6,0.2881]
[1735821801104,1.18361992,3474.7,3474.6,0.2881]
[1735821801408,0.89552992,3474.7,3474.6,0.2881]
[1735821801609,0.49723357,3475.1,3474.5,0.4488]
[1735821801800,1.18359992,3475.0,3474.9,0.28807]
[1735821802200,0.89552992,3475.0,3474.9,0.28807]
[1735821802404,0.89552992,3475.0,3474.5,1.16906]
[1735821802405,0.49723357,3475.1,3475.0,0.28807]
[1735821802795,0.49800304,3475.1,3475.0,0.28807]
[1735821803210,0.49807191,3475.1,3474.8,1.79282992]
[1735821803709,0.49807191,3475.1,3475.0,0.28807]
[1735821804119,4.39137992,3475.2,3474.8,1.79282992]
[1735821804120,3.2078,3475.2,3474.8,1.79282992]
[1735821804306,3.2078,3475.2,3475.1,0.28806]
[1735821804508,3.49585,3475.2,3475.1,0.28806]
[1735821804810,3.2078,3475.2,3475.1,0.28806]
[1735821806814,0.89552992,3475.3,3475.2,0.28805]
[1735821807415,0.89552992,3475.3,3475.2,0.72885]
[1735821807914,1.18356992,3475.3,3475.2,0.72885]
[1735821808309,1.18356992,3475.3,3475.2,0.4408]
[1735821808515,0.28806,3475.1,3475.0,1.13]
[1735821808712,1.18358992,3475.1,3475.0,1.13]
[1735821809611,1.18358992,3475.1,3475.0,1.41807]
[1735821810014,0.4365,3475.2,3475.1,0.28806]
[1735821810216,1.64026992,3475.4,3475.0,1.13]
[1735821810417,1.64026992,3475.4,3475.3,0.28804]
[1735821811923,1.18355992,3475.4,3475.3,0.28804]
[1735821812122,0.4365,3475.5,3475.4,0.28803]
[1735821812421,3.2078,3475.6,3475.5,0.28803]
[1735821812622,3.2078,3475.6,3475.5,1.18355992]
[1735821812808,1.31892992,3475.9,3475.5,0.89552992]
[1735821813016,1.31892992,3475.9,3475.8,0.288]
[1735821813316,1.31892992,3475.9,3475.6,0.8658]
[1735821813511,1.60692992,3475.9,3475.6,0.8658]
[1735821813716,1.60692992,3475.9,3475.7,0.288]
[1735821814215,1.60692992,3475.9,3475.8,0.288]
[1735821814618,0.89552992,3475.9,3475.8,0.288]
[1735821814924,3.6555,3476.0,3475.9,0.28799]
[1735821815225,3.94348,3476.0,3475.9,0.28799]
[1735821815412,0.73568,3476.0,3475.9,0.28799]
[1735821815619,0.28799,3475.9,3475.8,1.41699]
[1735821815818,0.89552992,3475.9,3475.8,1.41699]
[1735821816818,1.18351992,3475.9,3475.8,1.41699]
[1735821817019,0.89552992,3475.9,3475.8,1.41699]
[1735821817822,1.18351992,3475.9,3475.8,1.41699]
[1735821818031,1.18351992,3475.9,3475.8,1.129]
[1735821818326,1.61951992,3475.9,3475.8,1.129]
[1735821818918,1.18351992,3475.9,3475.8,1.129]
[1735821819118,1.18351992,3475.9,3475.8,1.417]
[1735821819520,1.63921992,3475.9,3475.8,1.417]
[1735821820324,1.63921992,3475.9,3475.8,0.288]
[1735821822529,0.288,3475.8,3475.7,1.129]
[1735821828038,0.28803,3475.5,3475.4,0.4235]
[1735821828236,1.18355992,3475.5,3475.4,1.5525]
[1735821828435,1.18355992,3475.5,3475.4,0.4235]
[1735821828832,0.89552992,3475.5,3475.2,3.2078]
[1735821829127,0.89552992,3475.3,3474.8,3.2078]
[1735821829332,0.28807,3475.0,3474.9,1.129]
[1735821831034,1.18359992,3475.0,3474.9,1.129]
[1735821834336,0.28808,3474.9,3474.8,4.3368]
[1735821834537,1.17908,3474.9,3474.8,4.3368]
[1735821834831,1.17908,3474.9,3473.9,7.9194]
[1735821834832,0.28811,3474.5,3474.4,1.5867]
[1735821835034,1.18363992,3474.5,3474.4,1.5867]
[1735821835435,1.63903992,3474.5,3474.4,1.129]
[1735821836936,0.2881,3474.7,3474.6,0.28809]
[1735821837839,0.4419,3474.8,3474.7,0.28809]
[1735821838241,0.72998,3474.8,3474.7,0.28809]
[1735821841547,3.2078,3475.0,3474.5,0.8604]
[1735821841842,0.28808,3474.9,3474.8,0.28808]
[1735821842041,6.79277565,3475.4,3474.8,2.03821052]
[1735821842245,6.79277565,3475.4,3475.3,0.28804]
[1735821842545,6.79277565,3475.4,3475.3,1.41704]
[1735821842737,6.79277565,3475.4,3475.3,42.21704]
[1735821842937,0.28799,3476.0,3475.3,1.41704]
[1735821843141,0.288,3475.9,3475.7,0.288]
[1735821843446,0.28799,3476.0,3475.8,0.7211]
[1735821843640,0.28799,3475.9,3475.8,0.4331]
[1735821843840,0.28799,3475.9,3475.8,0.7211]
[1735821844345,0.28799,3476.0,3475.8,0.7211]
[1735821844534,0.28799,3476.0,3475.8,0.4331]
[1735821844735,0.433,3476.2,3475.8,0.4331]
[1735821844954,0.28799,3475.9,3475.8,0.7211]
[1735821845638,0.28799,3475.9,3475.8,0.4331]
[1735821845838,2.32620052,3475.9,3475.5,3.2078]
[1735821846043,0.28802,3475.6,3475.5,3.2078]
[1735821846234,0.28802,3475.6,3475.5,4.3368]
[1735821846442,0.28802,3475.6,3475.5,3.2078]
[1735821846741,0.28802,3475.6,3474.9,3.2078]
[1735821846742,2.03821052,3475.6,3474.9,3.2078]
[1735821846952,0.28806,3475.2,3475.1,0.28805]
[1735821847743,0.28806,3475.2,3475.0,1.5708]
[1735821847943,0.28802,3475.6,3475.0,1.5708]
[1735821848146,3.49581,3475.7,3475.1,0.28806]
[1735821848339,3.49581,3475.7,3475.5,0.28802]
[1735821848544,3.49581,3475.7,3475.6,0.4418]
[1735821850048,0.28801,3475.7,3475.6,0.4418]
[1735821850247,0.28801,3475.7,3475.6,0.72982]
[1735821850750,0.28801,3475.7,3475.6,0.4418]
[1735821851652,1.79779365,3475.8,3475.0,1.129]
[1735821851851,0.28805,3475.2,3475.1,0.73426]
[1735821852849,0.28805,3475.2,3475.1,0.4462]
[1735821853053,2.03821052,3475.3,3474.9,3.2078]
[1735821853252,0.28806,3475.1,3475.0,1.129]
[1735821853554,0.28807,3475.0,3474.9,4.3368]
[1735821853851,0.28807,3475.0,3474.9,4.62488]
[1735821855348,0.28808,3474.9,3474.8,4.3368]
[1735821855550,0.28808,3474.8,3474.7,0.4462]
[1735821855752,3.2078,3475.1,3474.7,1.129]
[1735821855951,0.28808,3474.8,3474.7,1.129]
[1735821856348,0.28808,3474.8,3474.7,1.41709]
[1735821857153,0.28808,3474.8,3474.7,1.129]
[1735821857656,0.28808,3474.8,3474.7,1.41709]
[1735821858355,0.28808,3474.8,3474.7,1.129]
[1735821860671,0.28808,3474.8,3474.7,1.41709]
[1735821861557,0.28808,3474.8,3474.7,1.129]
[1735821865075,0.28808,3474.8,3474.7,1.41709]
[1735821866176,3.49586,3475.1,3475.0,0.28807]
[1735821866377,1.56255,3475.2,3475.1,0.28806]
[1735821866571,1.2745,3475.2,3475.1,0.28806]
[1735821867881,0.4265,3475.2,3475.1,0.28806]
[1735821869278,0.4409,3475.5,3475.0,0.4304]
[1735821869477,0.4409,3475.5,3475.4,0.28803]
[1735821869980,0.72893,3475.5,3475.4,0.28803]
[1735821871177,0.28805,3475.3,3475.2,0.28805]
[1735821871574,0.28806,3475.2,3475.1,0.28805]
[1735821880289,0.28807,3475.0,3474.9,1.87307]
[1735821880982,0.71997,3475.0,3474.9,1.87307]
[1735821881184,0.71997,3475.0,3474.9,1.585]
[1735821882090,0.71997,3475.0,3474.9,1.87308]
[1735821882282,0.71997,3475.0,3474.9,1.585]
[1735821882581,0.71997,3475.0,3474.9,1.87308]
[1735821883785,0.49795197,3475.2,3474.9,1.585]
[1735821884090,0.78601197,3475.2,3475.1,0.28806]
[1735821885085,0.28807,3475.1,3475.0,0.28806]
[1735821886289,0.49795197,3475.2,3474.9,1.585]
[1735821886491,0.28807,3475.0,3474.9,1.87307]
[1735821887686,0.49795197,3475.2,3474.9,1.585]
[1735821888086,0.78600197,3475.2,3475.1,0.28806]
[1735821889289,0.28805,3475.2,3475.1,0.28806]
[1735821889492,0.78600197,3475.2,3475.1,0.28806]
[1735821890894,0.28805,3475.2,3475.1,0.28806]
[1735821891090,0.78600197,3475.2,3475.1,0.28806]
[1735821892391,0.28805,3475.2,3475.1,0.28806]
[1735821893393,0.78630246,3475.2,3475.1,0.28806]
[1735821900990,7.91928756,3475.5,3475.1,0.28806]
[1735821900991,7.91928756,3475.5,3475.1,0.89568549]
[1735821901186,7.91928756,3475.5,3475.4,1.18371549]
[1735821901793,3.2078,3475.7,3475.6,0.28802]
[1735821902090,7.91928756,3475.9,3475.6,0.28802]
[1735821902091,7.91928756,3475.9,3475.8,0.288]
[1735821902494,8.20727756,3475.9,3475.8,0.288]
[1735821903090,9.94443685,3476.1,3476.0,0.28798]
[1735821903091,0.28798,3476.1,3476.0,0.28798]
[1735821904392,3.2078,3476.2,3475.9,0.28799]
[1735821904393,0.28799,3476.0,3475.9,0.28799]
[1735821926321,1.68016409,3476.1,3476.0,0.28798]
[1735821926919,0.49691194,3476.1,3476.0,0.28798]
[1735821927122,3.2078,3476.2,3476.1,0.28798]
[1735821927428,7.92809524,3476.6,3476.5,0.28794]
[1735821927619,7.92809524,3476.6,3476.5,2.31220215]
[1735821927819,7.92809524,3476.6,3476.5,43.11220215]
[1735821928222,0.58261046,3477.1,3476.5,42.82426215]
[1735821928422,0.28791,3477.0,3476.8,0.28791]